Cogmind - Beta 14 @@@ ROGUE MODE // 2025.01.04 @ 07:18:07 Player: Angry Canadian Result: Self-destructed Performance ------------- Evolutions (2) 1000 Regions Visited (4) 800 Robots Destroyed (72) 360 Value Destroyed (1840) 1840 Prototype IDs (5) 100 Alien Tech Used (0) 0 Bonus (427) 427 TOTAL SCORE: 4527 Bonus ------- High Alert Combat Kills 2 Follower Combat Kills 425 Cogmind --------- Core Integrity 309/550 Matter 270/300 Energy 210/265 System Corruption 0% Temperature Warning (341) Movement Walking (810) Ox8 Location -8/Materials Parts ------- > --- POWER (1) -------- Improved Ion Engine > --- PROPULSION (3) --- VSS Leg > --- UTILITY (4) ------ Huge Storage Unit Improved Targeting Computer Improved Light Armor Plating > --- WEAPON (3) ------- Beam Cannon Minigun Improved Light Cannon > --- INVENTORY (25) --- Cooled Ion Engine Cooled Ion Engine Light Nuclear Core Hardened Medium Armor Plating Improved Light Armor Plating Improved Light Armor Plating Faulty Improved EM Shotgun Improved Medium Laser Improved Medium Laser Improved Light Cannon Peak State ------------ > --- POWER ------------ Improved Ion Engine > --- PROPULSION ------- VSS Leg VSS Leg VSS Leg > --- UTILITY ---------- Huge Storage Unit Improved Targeting Computer Improved Light Armor Plating Improved Light Armor Plating > --- WEAPON ----------- Beam Cannon Beam Cannon Minigun > --- INVENTORY -------- Cooled Ion Engine Cooled Ion Engine Light Nuclear Core Hardened Medium Armor Plating Improved Light Armor Plating Improved Light Armor Plating Improved EM Shotgun Improved Medium Laser Improved Medium Laser Improved Light Cannon Improved Light Cannon [Rating: 28] Favorites ----------- Power Ion Engine Engine Ion Engine Propulsion VSS Leg Treads Light Treads Leg VSS Leg Utility Cooling System Device Cooling System Storage Huge Storage Unit Processor Improved Targeting Computer Protection Hardened Medium Armor Plating Weapon Beam Cannon Energy Gun Beam Rifle Energy Cannon Beam Cannon Ballistic Gun Assault Rifle Ballistic Cannon Improved Light Cannon Build | -11 -10 -9 -9 -8 ------- Run | Yrd Mat Mat Sto Mat Slots Evolved 4 | . . 2 . 2 Power . | . . . . . Propulsion 1 | . . 1 . . Utility 2 | . . 1 . 1 Weapon 1 | . . . . 1 Parts Attached 42 | 7 7 16 7 5 Power 7 | 2 . 3 1 1 Engine 7 | 2 . 3 1 1 Core . | . . . . . Reactor . | . . . . . Propulsion 12 | 2 2 7 1 . Treads 7 | 2 2 3 . . Leg 5 | . . 4 1 . Wheel . | . . . . . Hover . | . . . . . Flight . | . . . . . Utility 11 | 1 1 5 3 1 Device 1 | . . 1 . . Storage 3 | 1 . 2 . . Processor 1 | . . . 1 . Hackware . | . . . . . Protection 6 | . 1 2 2 1 Artifact . | . . . . . Weapon 12 | 2 4 1 2 3 Energy Gun 2 | . 1 1 . . Energy Cannon 4 | . 2 . 1 1 Ballistic Gun 4 | 2 . . 1 1 Ballistic Cannon 2 | . 1 . . 1 Launcher . | . . . . . Special Weapon . | . . . . . Impact Weapon . | . . . . . Slashing Weapon . | . . . . . Piercing Weapon . | . . . . . Special Melee Weapon . | . . . . . Unidentified Prototypes . | . . . . . Parts Lost 20 | . 1 8 6 5 Power 4 | . . 2 1 1 Propulsion 6 | . . 3 1 2 Utility 5 | . . 2 2 1 Weapon 5 | . 1 1 2 1 Highest Loss Streak 4 | . 1 3 4 4 To Critical Strikes 1 | . . . 1 . Average Slot Usage (%) 95 | . 93 92 99 99 Engine 11 | . 14 10 11 8 Treads 7 | . 28 4 . . Leg 22 | . . 25 32 26 Device 6 | . . 9 9 . Storage 11 | . 14 11 11 9 Processor 1 | . . . 1 9 Protection 10 | . 7 10 10 18 Energy Gun 3 | . 6 3 1 . Energy Cannon 10 | . 5 11 11 17 Ballistic Gun 5 | . 14 . 9 9 Ballistic Cannon 3 | . 1 7 . . Peak Build Rating 28 | 6 12 24 24 28 Average Rating 18 | 4 7 20 20 26 On Entrance 12 | . 6 10 24 20 Naked Turns . | . . . . . Heaviest Build 105 | 12 20 105 104 102 Greatest Support 69 | 40 46 69 36 36 Greatest Overweight (x) 4 | . . 2 2 4 Average Overweight (x) 1 | . . 1 2 2 Largest Inventory Capacity 25 | 8 8 25 25 25 Average Capacity 18 | 7 8 18 25 25 Most Carried 15 | 4 8 15 14 12 Average Carried 9 | 1 3 11 12 10 Final Capacity 25 | 8 8 25 25 25 Final Carried 14 | 1 6 14 12 10 Class Distribution -------------------- 86% | Mutant 8% | Tank 4% | Commander-Mutant Dominant Class ---------------- Mutant | -10/Materials Mutant | -9/Materials Mutant | -9/Storage Tank | -8/Materials Resources | -11 -10 -9 -9 -8 ----------- Run | Yrd Mat Mat Sto Mat Matter Collected 1094 | 159 273 404 186 72 Remotely . | . . . . . Salvage Created 2393 | . 516 901 577 399 Parts 141 | . 26 68 35 12 Haulers Intercepted 3 | . . 2 1 . Recyclers Shooed 1 | . . 1 . . Parts Field Recycled . | . . . . . Retrieved Matter . | . . . . . Parts Self-Destructed . | . . . . . Prevented . | . . . . . Kills | -11 -10 -9 -9 -8 ------- Run | Yrd Mat Mat Sto Mat Combat Hostiles Destroyed 54 | . 10 25 13 6 Guns 21 | . 7 5 7 2 Cannons 32 | . 3 20 6 3 Classes Destroyed 11 | . 6 4 . 1 Worker 1 | . 1 . . . Builder 1 | . . 1 . . Hauler 3 | . . 2 1 . Recycler 3 | . 1 . 1 1 Operator 1 | . 1 . . . Watcher 9 | . 2 5 2 . Swarmer 21 | . 3 12 6 . Grunt 20 | . 7 4 4 5 Brawler 1 | . . 1 . . Sentry 11 | . . 8 3 . Hunter 1 | . . . . 1 Best Kill Streak 5 | . 4 5 5 2 Combat Bots Only 5 | . 2 4 5 2 Max Kills in Single Turn 2 | . 2 2 1 1 Gunslinging . | . . . . . Exploded . | . . . . . Melee . | . . . . . Uniques/NPCs Destroyed . | . . . . . Combat | -11 -10 -9 -9 -8 -------- Run | Yrd Mat Mat Sto Mat Hostile Shots Fired 382 | . 60 153 123 46 Missed 114 | . 15 46 41 12 Damage Taken 3337 | . 544 1217 801 775 Core 648 | . 163 129 115 241 Absorbed by Shields . | . . . . . Core Remaining (%) 57 | 100 34 . 39 . Volleys Fired 207 | . 50 84 50 23 Largest 3 | . 2 2 2 3 Hottest 145 | . 125 116 116 145 Shots Fired 414 | . 98 168 95 53 Gun 157 | . 76 19 46 16 Cannon 257 | . 22 149 49 37 Launcher . | . . . . . Special . | . . . . . Kinetic 188 | . 62 65 42 19 Thermal 226 | . 36 103 53 34 Explosive . | . . . . . Electromagnetic . | . . . . . Robot Hit Streak 14 | . 9 7 9 14 Robot Miss Streak 8 | . 5 8 4 4 Penetration Max . | . . . . . Secondary Targets . | . . . . . Shots Hit Robots 224 | . 53 86 48 37 Core Hits 104 | . 28 40 24 12 Critical Kills 1 | . . . . 1 Critical Parts Destroyed 1 | . . . 1 . Critical Strikes 7 | . 1 4 1 1 Burn 1 | . 1 . . . Meltdown 1 | . . . . 1 Destroy 1 | . . . 1 . Blast 4 | . . 4 . . Melee Attacks . | . . . . . Impact . | . . . . . Slashing . | . . . . . Piercing . | . . . . . Sneak Attacks . | . . . . . Combat Hostiles . | . . . . . Follow-up Attacks . | . . . . . Damage Inflicted 3860 | . 612 1862 736 650 Guns 1084 | . 387 205 349 143 Cannons 2744 | . 223 1627 387 507 Explosions . | . . . . . Melee . | . . . . . Ramming 32 | . 2 30 . . Kinetic 1781 | . 350 872 349 210 Thermal 2047 | . 260 960 387 440 Explosive . | . . . . . Electromagnetic . | . . . . . Impact . | . . . . . Slashing . | . . . . . Piercing . | . . . . . Highest Corruption . | . . . . . Average Corruption . | . . . . . Corruption Purged . | . . . . . Corruption Blocked . | . . . . . Overload Shots . | . . . . . Overflow Damage 34 | . . 34 . . Projectiles 34 | . . 34 . . Explosions . | . . . . . Melee . | . . . . . Knockbacks 7 | . 1 5 . 1 Impact . | . . . . . Kinetic 7 | . 1 5 . 1 Secondary . | . . . . . Self-Inflicted Damage . | . . . . . Shots . | . . . . . Rammed 15 | . . 15 . . Targets Rammed 16 | . 1 15 . . Kicked . | . . . . . Crushed 1 | . 1 . . . Highest Temperature 612 | . 612 359 13 532 Average Temperature 141 | . 160 92 7 231 Received Heat Transfer 963 | . 231 291 246 195 Effects 22 | . 12 2 . 8 Shutdowns 3 | . 2 . . 1 Energy Bleed 3 | . 1 . . 2 Interference 6 | . 2 2 . 2 Matter Decay 2 | . 2 . . . Damage (minor) 3 | . 2 . . 1 Damage (major) 3 | . 2 . . 1 Damage (core) 2 | . 1 . . 1 Siege Activations . | . . . . . Robots Corrupted . | . . . . . Combat Hostiles . | . . . . . Parts Fried . | . . . . . Impact Corruptions . | . . . . . Robots Melted 1 | . . . . 1 Combat Hostiles 1 | . . . . 1 Parts Melted 9 | . 4 2 . 3 Heat Transferred 4514 | . 666 2109 814 925 Parts Sabotaged . | . . . . . Parts Stolen . | . . . . . Parts Stripped . | . . . . . Power Chain Reactions . | . . . . . Alert | -11 -10 -9 -9 -8 ------- Run | Yrd Mat Mat Sto Mat Peak Influence 458 | . 197 432 458 313 Initial 193 | . . 44 118 193 Average 191 | . 71 235 204 207 Maximum Alert Level 2 | . . 2 2 1 Low Security (%) 58 | 100 100 34 66 70 Level 1 38 | . . 64 21 29 Level 2 3 | . . . 12 . Level 3 . | . . . . . Level 4 . | . . . . . Level 5 . | . . . . . High Security . | . . . . . Max Security . | . . . . . Squads Dispatched 13 | . 2 2 5 4 Investigation 2 | . . 1 . 1 Extermination . | . . . . . Reinforcement 7 | . 2 1 1 3 Assault 2 | . . . 2 . Garrison 2 | . . . 2 . Intercept . | . . . . . Searches Triggered . | . . . . . Construction Impeded . | . . . . . Haulers Reinforced . | . . . . . Active Scanning Responses . | . . . . . Cargo Convoy Interrupts . | . . . . . Stealth | -11 -10 -9 -9 -8 --------- Run | Yrd Mat Mat Sto Mat Distress Signals 4 | . . 2 1 1 Communications Jammed . | . . . . . Distress Signals . | . . . . . Times Spotted 96 | . 19 35 30 12 Peak Tracking Total 9 | . 3 4 9 6 Tactical Retreats 7 | . 3 3 . 1 Traps | -11 -10 -9 -9 -8 ------- Run | Yrd Mat Mat Sto Mat Traps Triggered 1 | . . 1 . . Indirectly . | . . . . . Trap Hack Attempts . | . . . . . Triggered . | . . . . . Disarmed 6 | . 6 . . . Reprogrammed . | . . . . . Reused . | . . . . . Traps Extracted . | . . . . . Installed . | . . . . . Triggered . | . . . . . Machines | -11 -10 -9 -9 -8 ---------- Run | Yrd Mat Mat Sto Mat Machines Disabled 8 | . 3 3 1 1 Max in Single Turn 1 | . 1 1 1 1 Machines Repaired . | . . . . . Machines Dismantled . | . . . . . Machines Sabotaged . | . . . . . Overloaded Fab Kills . | . . . . . Hacking | -11 -10 -9 -9 -8 --------- Run | Yrd Mat Mat Sto Mat Machines Accessed 25 | . 4 10 10 1 Terminals 19 | . 4 8 7 . Fabricators . | . . . . . Repair Stations 1 | . . . 1 . Recycling Units 3 | . . . 2 1 Scanalyzers 2 | . . 2 . . Garrison Access . | . . . . . Total Hacks 41 | . 8 16 15 2 Successful 21 | . 6 7 6 2 Failed 20 | . 2 9 9 . Catastrophic 9 | . 2 3 4 . Database Lockouts . | . . . . . Manual 1 | . . . 1 . Terminals 32 | . 8 13 11 . Fabricators . | . . . . . Repair Stations 2 | . . . 2 . Recycling Units 4 | . . . 2 2 Scanalyzers 3 | . . 3 . . Garrison Access . | . . . . . Terminal Hacks 14 | . 6 5 3 . Part Schematic 1 | . . . 1 . Robot Analysis 1 | . 1 . . . Prototype ID Bank 3 | . 1 1 1 . Branch Access Points 1 | . . . 1 . Alert Level 3 | . 2 1 . . Unreport Threat 1 | . 1 . . . Locate Traps 1 | . . 1 . . Disarm Traps 1 | . 1 . . . Security Status 1 | . . 1 . . Hauler Manifests 1 | . . 1 . . Fabricator Hacks . | . . . . . Repair Station Hacks 1 | . . . 1 . Scan Component 1 | . . . 1 . Recycling Unit Hacks 4 | . . . 2 2 Report Inventory 3 | . . . 2 1 Retrieve Components 1 | . . . . 1 Scanalyzer 2 | . . 2 . . Insert Component 1 | . . 1 . . Analyze 1 | . . 1 . . Garrison Access Hacks . | . . . . . Unauthorized Hacks . | . . . . . Terminals . | . . . . . Fabricators . | . . . . . Repair Stations . | . . . . . Recycling Units . | . . . . . Scanalyzers . | . . . . . Garrison Access . | . . . . . Data Cores Recovered 1 | . 1 . . . Used 1 | . 1 . . . Hacking Detections 19 | . 2 9 7 1 Full Trace Events . | . . . . . Feedback Events . | . . . . . Feedback Blocked . | . . . . . Robot Schematics Acquired . | . . . . . Robots Built . | . . . . . Authchips . | . . . . . Time . | . . . . . Total Robot Build Rating . | . . . . . Part Schematics Acquired 2 | . . 1 1 . Parts Built . | . . . . . Authchips . | . . . . . Time . | . . . . . Total Part Build Rating . | . . . . . Parts Repaired . | . . . . . Time . | . . . . . Parts Recycled . | . . . . . Recycled Matter . | . . . . . Retrieved Matter . | . . . . . Retrieved Components 6 | . . . . 6 Parts Scanalyzed 1 | . . 1 . . Part Schematics Acquired 1 | . . 1 . . Parts Damaged . | . . . . . Bothacking | -11 -10 -9 -9 -8 ------------ Run | Yrd Mat Mat Sto Mat Used RIF Installer . | . . . . . Robots Hacked . | . . . . . Non-combat . | . . . . . Combat . | . . . . . Robot Hacks Applied . | . . . . . Relay Couplers Released . | . . . . . Fabnet Peak Effective % . | . . . . . Robots Rewired . | . . . . . Allies Hacked . | . . . . . Hacks Repelled . | . . . . . Allies | -11 -10 -9 -9 -8 -------- Run | Yrd Mat Mat Sto Mat Total Allies 12 | . . . 12 . Largest Group 12 | . . . 12 3 Highest-Rated Group 150 | . . . 150 55 Highest-Rated Ally 31 | . . . 31 31 Total Orders . | . . . . . Ally Attacks 106 | . . . 94 12 Total Damage 1226 | . . . 1059 167 Kills 15 | . . . 15 . Allies Corrupted 1 | . . . 1 . Allies Melted . | . . . . . Intel | -11 -10 -9 -9 -8 ------- Run | Yrd Mat Mat Sto Mat Robot Analysis Total 1 | . 1 . . . Derelict Logs Recovered . | . . . . . Drone Launches . | . . . . . Drone Recoveries . | . . . . . Exploration | -11 -10 -9 -9 -8 ------------- Run | Yrd Mat Mat Sto Mat Turns Passed 5005 | 76 935 2374 1189 431 Spaces Moved 1914 | 43 479 899 373 120 Core 6 | 6 . . . . Treads 670 | 37 479 154 . . Legs 1238 | . . 745 373 120 Wheels . | . . . . . Hover . | . . . . . Flight . | . . . . . Fastest Speed 50 | 50 160 90 270 270 Average Speed 215 | 144 160 218 270 273 Slowest Speed 450 | 160 160 270 270 450 Overloaded Moves . | . . . . . Propulsion Burnouts . | . . . . . Robots Hopped . | . . . . . Cave-ins Triggered . | . . . . . Exploration Rate (%) 46 | 4 80 76 58 14 Regions Visited 4 Branch Regions 1 Pre-discovered Areas . | . . . . . Known Exits Taken . | . . . . . Unknown Exits Taken 4 | 1 1 1 1 . Scrap Searched . | . . . . . Spaces Dug . | . . . . . Terrain Destroyed 4 | . . 4 . . Melee . | . . . . . Projectile 4 | . . 4 . . AOE . | . . . . . Terrain Rammed . | . . . . . Walls Destroyed . | . . . . . Machines Disabled . | . . . . . Actions | -11 -10 -9 -9 -8 --------- Run | Yrd Mat Mat Sto Mat Total 2401 | 56 562 1137 462 184 Wait 153 | . 7 89 27 30 Move 1910 | 42 478 898 372 120 Hop . | . . . . . Pick Up 55 | 7 13 26 5 4 Fast Attach . | . . . . . Attach 32 | 6 2 13 7 4 Detach 1 | . . 1 . . Swap 10 | 1 5 3 . 1 Drop 17 | . 6 8 1 2 Fire 207 | . 50 84 50 23 Melee . | . . . . . Ram . | . . . . . Kick . | . . . . . Crush 16 | . 1 15 . . Escape Stasis . | . . . . . Rewire . | . . . . . Trap . | . . . . . Miscellaneous . | . . . . . Route ------- -11/Scrapyard -10/Materials (discovered 3 exits: *Mat x2 / [*Min]) -9/Materials (discovered 5 exits: *Mat x3 / [*Min] / *Sto) -9/Storage (discovered 2 exits: *Mat / Rec) -8/Materials History --------- Turn | Location | Event 17 | -11/Scrapyard | Discovered new exit (range 16) 77 | -11/Scrapyard | Entered Materials 242 | -10/Materials | Discovered new exit (range 3) 306 | -10/Materials | Build established: Mutant 544 | -10/Materials | Discovered new exit (range 12) 722 | -10/Materials | Discovered new exit (range 13) 924 | -10/Materials | Core integrity fell below 50% 1012 | -10/Materials | Entered another Materials area 1012 | -9/Materials | Evolved 2 slots: Propulsion x1, Utility x1 1037 | -9/Materials | Discovered new exit (range 15) 1144 | -9/Materials | Lost 3 parts (1p2n) 1402 | -9/Materials | Discovered new exit (range 11) 2239 | -9/Materials | Discovered new exit (range 12) 2386 | -9/Materials | Discovered new exit (range 10) 2998 | -9/Materials | Discovered new exit (range 5) 3386 | -9/Materials | Entered Storage 3555 | -9/Storage | Core integrity fell below 50% 3587 | -9/Storage | Lost 4 parts (1p1u2w) 3879 | -9/Storage | Identified exit to Recycling 4279 | -9/Storage | Assisted by bots powering up and referring to "LRC-V3" 4330 | -9/Storage | Discovered new exit (range 15) 4374 | -9/Storage | Met a pair of Derelict thieves 4396 | -9/Storage | Garrison activated, responded to threat 4451 | -9/Storage | Lost 6 allies 4541 | -9/Storage | Lost 3 allies 4575 | -9/Storage | Entered Materials 4575 | -8/Materials | Accompanied by 3 allies 4575 | -8/Materials | Evolved 2 slots: Utility x1, Weapon x1 4855 | -8/Materials | Lost 3 allies 4861 | -8/Materials | Build established: Tank 4896 | -8/Materials | Met 7R-MNS 5006 | -8/Materials | Self-destructed Last Messages --------------- Penetrated by Slug. K-01 Serf collects debris. Overheating: Energy bleed (-50). U-05 Engineer builds a Wall. K-01 Serf collects debris. Targeting Computer melted. Carbon-fiber Leg melted. H-55 Commando destroyed. K-01 Serf collects debris. W-25 Informer knocked back. U-05 Engineer builds a Wall. Imp. Light Armor Plating destroyed. Penetrated by Slug. W-25 Informer destroyed. U-05 Engineer lays Concrete. U-05 Engineer builds a Wall. Overheating: Energy bleed (-43). U-05 Engineer lays Concrete. K-01 Serf collects debris. VSS Leg destroyed. Map ----- +----------------------------------------------------+ | ?????????????????????????????????????????????????? | | ?????????????????????????????????????????????????? | | ?????????????????????????????????????????????????? | | ?????????????????????????????????????????????????? | | ?????????????????????????????????????????????????? | | ?????????????????????????????????????????????????? | | ?????????????????????????????????????????????????? | | ?????????????????????????????????????????????????? | | ?????????????????????????????????????????????????? | | ?????????????????????????????????????????????????? | | ?????????????????????????????????????????????????? | | ?????????????????????????????????????????????????? | | ?????????????????????????????????????????????????? | | ?????????????????????????????????????????????????? | | ?????????????????????????????????????????????????? | | ?????????????????????????????????????????????????? | | ?????????????????????????????????????????????????? | | ?????????????????????????????????????????????????? | | ?????????????????????????????????????????????????? | | ?????????????? ??????????????????????????????????? | | ?????????????? ??????#######?????????????????????? | | ?????????????? ????### ##????????????????????? | | ?????????????? #??## #????????????????????? | | ?????????????# #?##;;;;;;;; #????????????????????? | | ? ??????????# ### ;;#######??????????????? | | ? +?????????# ##; @;%= [% ????????? | | ? # ???????## ##; ;;######???????????????? | | ? # ??????# #; % #????????????????????? | | ? # ?????# #; % #????????????????????? | | + #?] ????# #; #????????????????????? | | # ####+##### #; ;##????????????????????? | | # # *# ;; k ;#?????????????????????? | | # # """""%=# #; ##?????????????????????? | | # # """""*!# ####;g;;;;#??????????????????????? | | # # """"" %# % uxgu#####?????????????????????? | | # + """"% / % kx = +?????????????????????? | | # # """"" # %u% #####?????????????????????? | | # # """"" ####+###% #?????????????????????????? | | # # """"" #? # #?????????????????????????? | | # ## ???# #?????????????????????????? | | # ####+###### ????#% #?????????????????????????? | | # #??# #????#?????#% #?????????????????????????? | | # #??# #??????????+ #?????????????????????????? | | # #### #??????????# #?????????????????????????? | | #??????????# #?????????????????????????? | | #??????????# #?????????????????????????? | | #+#####/####???????? #?????????????????????????? | | #???????? #?????????????????????????? | | ""[[ #???????? #?????????????????????????? | | "Y [= #???????? #?????????????????????????? | +----------------------------------------------------+ Best States ------------- Heat Dissipation 50 Energy Generation 14 Energy Capacity 280 Matter Stores 300 Matter Capacity 300 Sight Range 16 Terrain Scan Density 10 Armor Coverage 300 Evasion (%) 47 Targeting Accuracy 6 Recoil Reduction 3 Item Schematics ----------------- Cld. Ion Engine | -9/Materials | Scanalyzed Hpw. Tractor Beam | -9/Storage | Hacked Robot Schematics ------------------ None Fabricated ------------ Nothing Alien Tech Used ----------------- None Achievements -------------- Dynamic Key Fist Fight It's Just You The More The Merrier Challenges ------------ None Game ------ Seed ThrusterAlertPower Manual? 0 Play Time 00:52:27 Cumulative 6.0 hours Start 2025.01.03 @ 23:31:18 End 2025.01.04 @ 07:18:07 Sessions 3 Manual Loads 0 Difficulty Rogue Special Mode None Game No. 5 Rogue 5 Adventurer 0 Explorer 0 Win Type - Total 0 Types 0/0/0/0/0/0/0/0/0 Lore% 1 Gallery% 6 Achievement% 13 Wizard Run 0 Options --------- Layout 1 ASCII 0 Keyboard 0 Movement Mouse Keybinds 0 Fullscreen 1 Font 24/Smallcaps Map View 50x35 Zoom Use 0% Tactical HUD 0 Map Filters NONE Filters NONE Steam 1 RUN: ef5d0750-5988-4f4c-b4a2-cf60a1f90f0f